Cogmind - Beta 11.1 @@@ ROGUE MODE // 2022.10.17 @ 18:54:15 Player: Finestep Result: Destroyed by S-43 Plague with Heavy Machine Gun Performance ------------- Evolutions (7) 3500 Regions Visited (26) 5200 Robots Destroyed (299) 1495 Value Destroyed (11732) 11732 Prototype IDs (36) 720 Alien Tech Used (0) 0 Bonus (10702) 10702 TOTAL SCORE: 33349 Bonus ------- Triggered High Security 500 High Alert Combat Kills 2065 Follower Combat Kills 4873 Network Hubs Disabled 200 Met Data Miner 300 Met Imprinter 300 Was Imprinted 300 Met Warlord at Base 500 MAIN.C Attacked Warlord 500 Warlord Defense Kills 2114 A7 Reached Mainframe 300 Friendly Fire -1250 Cogmind --------- Core Integrity 0/1300 Matter 283/300 Energy 99/100 System Corruption 14% Temperature Cool (0) Movement Core (50) Location -3/Research Parts ------- > --- POWER (2) -------- (None) > --- PROPULSION (5) --- (None) > --- UTILITY (11) ----- (None) > --- WEAPON (3) ------- (None) > --- INVENTORY (5) ---- Improved Transmission Jammer Experimental Utility Shielding Zionite Weapon Casing Graphene Brace Authchip [R/Combat] Peak State ------------ > --- POWER ------------ Vortex Chain Reactor > --- PROPULSION ------- Flexi-carbon Leg Myomer Leg Myomer Leg Enhanced Biometal Leg Experimental Myomer Leg > --- UTILITY ---------- Experimental Heat Sink Large Storage Unit Spectral Analyzer Advanced Terrain Scanner Advanced Terrain Scan Processor Advanced Targeting Computer Advanced Targeting Computer Improved Target Analyzer Improved Transmission Jammer Centrium Medium Armor Plating Advanced Force Field > --- WEAPON ----------- Helical Railgun Helical Railgun Helical Railgun > --- INVENTORY -------- Light Particle Reactor Experimental Cooling System Energy Well Improved Kinecellerator Experimental Utility Shielding Centrium Medium Armor Plating Graphene Brace Advanced Force Field Experimental System Shield Hacking Drone Bay Vortex Driver Vortex Driver Advanced KE Penetrator Precision Rocket Launcher Makeshift Spear [Rating: 155] Favorites ----------- Power Improved Deuterium Engine Engine Improved Deuterium Engine Power Core Neutrino Core Reactor Vortex Chain Reactor Propulsion Carbon-fiber Leg Treads Armored Medium Treads Leg Carbon-fiber Leg Utility Large Storage Unit Device Experimental Sensor Array Storage Large Storage Unit Processor Advanced Targeting Computer Hackware Experimental System Shield Protection Improved Medium Armor Plating Weapon Improved EM Pulse Cannon Energy Gun High-powered Shock Rifle Energy Cannon Improved EM Pulse Cannon Ballistic Gun Helical Railgun Ballistic Cannon Mass Driver Launcher Heavy Proton Missile Launcher Special Weapon Mining Laser Slashing Weapon Katana Piercing Weapon Makeshift Spear Build | -11 -10 -10 -9 -9 -8 -7 -7 -7 -7 -6 -6 -6 -6 -6 -5 -5 -5 -5 -5 -4 -4 -4 -4 -4 -4 -3 ------- Run | Scr Mat Min Mat Min Mat Fac Low Low Dat Pro Fac Low Low Zio Pro Fac Upp Upp War Pro Fac Ext Cet Arc Hub Res Slots Evolved 14 | . . . 2 . 2 2 . . . . 2 . . . . 2 . . . . 2 . . . . 2 Power 1 | . . . . . . . . . . . 1 . . . . . . . . . . . . . . . Propulsion 3 | . . . 1 . 1 . . . . . 1 . . . . . . . . . . . . . . . Utility 9 | . . . 1 . 1 2 . . . . . . . . . 2 . . . . 1 . . . . 2 Weapon 1 | . . . . . . . . . . . . . . . . . . . . . 1 . . . . . Parts Attached 310 | 6 4 2 17 7 12 30 4 . . 10 31 7 4 4 8 37 17 12 29 14 8 5 6 3 2 31 Power 23 | 1 . 1 . 1 1 2 . . . . 3 . . . 1 5 2 2 1 . . . . . . 3 Engine 8 | 1 . 1 . 1 . 2 . . . . 2 . . . . . . 1 . . . . . . . . Core 10 | . . . . . 1 . . . . . 1 . . . 1 4 2 1 . . . . . . . . Reactor 5 | . . . . . . . . . . . . . . . . 1 . . 1 . . . . . . 3 Propulsion 58 | 2 1 . 4 2 3 3 . . . . 7 1 1 2 2 6 1 3 5 . 2 3 . . 2 8 Treads 7 | 2 1 . . . . . . . . . . . . . . 3 1 . . . . . . . . . Leg 51 | . . . 4 2 3 3 . . . . 7 1 1 2 2 3 . 3 5 . 2 3 . . 2 8 Wheel . | . . . . . . . . . . . . . . . . . . . . . . . . . . . Hover . | . . . . . . . . . . . . . . . . . . . . . . . . . . . Flight . | . . . . . . . . . . . . . . . . . . . . . . . . . . . Utility 102 | 1 2 . 3 4 3 11 2 . . 5 11 3 . 2 3 13 2 5 10 3 4 1 2 2 . 10 Device 51 | . . . 2 2 1 8 1 . . 3 7 3 . 1 2 4 . 3 5 1 2 . 1 1 . 4 Storage 8 | 1 1 . . . . 1 . . . . . . . . 1 2 . 1 . 1 . . . . . . Processor 12 | . 1 . . . 2 1 . . . . . . . . . 3 . . 2 1 1 . . . . 1 Hackware 3 | . . . . . . . . . . . 1 . . . . . . . . . . . . . . 2 Protection 28 | . . . 1 2 . 1 1 . . 2 3 . . 1 . 4 2 1 3 . 1 1 1 1 . 3 Artifact . | . . . . . . . . . . . . . . . . . . . . . . . . . . . Weapon 127 | 2 1 1 10 . 5 14 2 . . 5 10 3 3 . 2 13 12 2 13 11 2 1 4 1 . 10 Energy Gun 14 | 2 1 . 1 . 1 3 . . . . . 2 1 . . . 1 . . . . . 1 . . 1 Energy Cannon 36 | . . . . . . 8 1 . . 2 6 . 2 . 1 9 2 . 3 . . . . . . 2 Ballistic Gun 36 | . . 1 7 . 2 1 . . . . . . . . . 1 5 1 4 5 2 1 2 1 . 3 Ballistic Cannon 7 | . . . . . . . . . . . 1 . . . . . 3 . 3 . . . . . . . Launcher 25 | . . . 1 . 2 2 1 . . 2 1 1 . . 1 3 1 1 2 4 . . 1 . . 2 Special Weapon 1 | . . . 1 . . . . . . . . . . . . . . . . . . . . . . . Impact Weapon . | . . . . . . . . . . . . . . . . . . . . . . . . . . . Slashing Weapon 3 | . . . . . . . . . . 1 2 . . . . . . . . . . . . . . . Piercing Weapon 5 | . . . . . . . . . . . . . . . . . . . 1 2 . . . . . 2 Special Melee Weapon . | . . . . . . . . . . . . . . . . . . . . . . . . . . . Unidentified Prototypes 20 | . . . 1 . . 3 . . . . . . . . . 2 . . 7 2 1 . 3 . . 1 Corrupted Parts 14 | . . . . . . . . . . 1 . . . 2 . 6 1 3 . . . 1 . . . . System Corruption 84 | . . . . . . . . . . 2 . . . 12 . 44 2 21 . . . 3 . . . . Parts Lost 44 | . . 1 1 1 3 . . . . . 2 . 1 . 1 7 4 4 . . . 1 . . . 18 Power 5 | . . . . . 1 . . . . . 1 . . . . 1 . . . . . . . . . 2 Propulsion 17 | . . . . . . . . . . . . . . . . 5 1 4 . . . . . . . 7 Utility 9 | . . . 1 1 1 . . . . . . . . . 1 . 1 . . . . . . . . 4 Weapon 13 | . . 1 . . 1 . . . . . 1 . 1 . . 1 2 . . . . 1 . . . 5 Highest Loss Streak 14 | . . 1 1 1 2 . . . . . 1 . 1 . 1 2 4 3 . . . 1 . . . 14 To Critical Strikes 1 | . . . . . . . . . . . . . . . . . . . . . . 1 . . . . Average Slot Usage (%) 94 | . 98 100 98 100 98 99 100 100 100 100 99 100 100 99 99 89 85 89 86 87 86 89 92 93 94 80 Engine 6 | . 14 14 11 11 7 5 7 7 7 7 12 13 13 13 8 1 . 4 3 . . . . . . . Core 1 | . . . . . 1 1 . . . . . . . . 4 5 9 5 3 . . . . . . . Reactor 1 | . . . . . . . . . . . . . . . . . . . 1 5 5 5 5 5 5 4 Treads 2 | . 27 28 . . . . . . . . . . . . . . 17 4 . . . . . . . . Leg 24 | . . . 32 33 36 30 30 30 30 30 32 33 33 33 33 23 . 14 20 29 26 26 26 26 26 19 Device 12 | . . . 4 11 9 14 15 15 15 14 11 13 13 15 17 13 11 14 15 7 5 10 13 17 15 14 Storage 6 | . 14 14 11 11 9 7 7 7 7 7 6 6 6 6 6 5 5 7 5 5 5 5 5 5 5 3 Processor 15 | . 12 14 6 . 13 17 15 15 15 15 13 13 13 13 13 16 17 15 13 20 21 21 21 21 21 19 Protection 6 | . . . 10 11 2 4 7 7 7 7 6 6 6 3 1 6 9 5 9 5 9 5 5 2 5 3 Energy Gun 2 | . 28 14 5 . 1 4 . . . . . 1 9 6 6 . . . . . . . 1 . . . Energy Cannon 4 | . . . . . . 7 14 15 15 14 8 11 3 6 5 9 1 . 1 . . . . . . . Ballistic Gun 5 | . . 13 13 22 16 1 . . . . . . . . . . 6 10 4 9 12 15 13 15 15 10 Naked Turns 162 | . . . . . . . . . . . . . . . . . . . . . . . . . . 162 Heaviest Build 113 | 11 26 28 35 35 36 55 55 53 53 56 74 72 67 66 66 78 84 75 113 98 99 98 98 90 90 102 Greatest Support 125 | 40 40 40 33 43 60 73 73 73 73 73 91 81 84 84 83 84 81 74 110 110 115 125 125 125 125 125 Greatest Overweight (x) 2 | . . . 1 1 . . . . . . . . . . . 1 1 2 1 . . . . . . 1 Average Overweight (x) . | . . . . . . . . . . . . . . . . . . . . . . . . . . . Largest Inventory Capacity 15 | 8 15 15 15 15 15 15 15 15 15 15 15 15 15 15 15 15 15 15 15 15 15 15 15 15 15 15 Average Capacity 14 | 7 11 15 15 15 15 15 15 15 15 15 15 15 15 15 15 15 15 15 15 15 15 15 15 15 15 13 Most Carried 15 | 4 11 11 15 15 15 15 15 15 15 15 15 15 15 15 15 15 15 15 15 15 15 15 15 15 15 15 Average Carried 14 | 2 8 10 11 14 14 14 14 15 15 14 14 14 14 14 14 14 14 14 14 14 14 14 14 15 15 13 Final Capacity 15 | 8 15 15 15 15 15 15 15 15 15 15 15 15 15 15 15 15 15 15 15 15 15 15 15 15 15 5 Final Carried 15 | 4 11 10 14 15 15 15 15 15 15 15 15 15 14 15 15 15 15 15 15 15 15 15 15 15 15 5 Class Distribution -------------------- 55% | Scavenger-Mutant 28% | Mutant 12% | Scavenger-Gunner Dominant Class ---------------- Mutant | -10/Materials Mutant | -10/Mines Mutant | -9/Materials Mutant | -9/Mines Scavenger-Mutant | -8/Materials Mutant | -7/Factory Mutant | -7/Lower Caves Mutant | -7/Lower Caves Mutant | -7/Data Miner Mutant | -6/Proximity Caves Mutant | -6/Factory Scavenger-Mutant | -6/Lower Caves Scavenger-Mutant | -6/Lower Caves Scavenger-Mutant | -6/Zion Scavenger-Mutant | -5/Proximity Caves Scavenger-Mutant | -5/Factory Scavenger-Mutant | -5/Upper Caves Scavenger-Mutant | -5/Upper Caves Scavenger-Mutant | -5/Warlord Scavenger-Mutant | -4/Proximity Caves Scavenger-Gunner | -4/Factory Scavenger-Gunner | -4/Extension Scavenger-Gunner | -4/Cetus Scavenger-Gunner | -4/Archives Scavenger-Gunner | -4/Hub_04(d) Scavenger-Gunner | -3/Research Resources | -11 -10 -10 -9 -9 -8 -7 -7 -7 -7 -6 -6 -6 -6 -6 -5 -5 -5 -5 -5 -4 -4 -4 -4 -4 -4 -3 ----------- Run | Scr Mat Min Mat Min Mat Fac Low Low Dat Pro Fac Low Low Zio Pro Fac Upp Upp War Pro Fac Ext Cet Arc Hub Res Matter Collected 8033 | 198 102 26 204 316 344 409 144 . . 139 541 141 52 40 81 431 322 512 429 610 440 596 228 295 308 1125 Remotely . | . . . . . . . . . . . . . . . . . . . . . . . . . . . Salvage Created 14716 | . 297 81 440 47 694 460 174 . . 292 1698 305 215 . 343 1425 869 815 950 1370 859 626 300 73 1176 1207 Parts 685 | . 22 3 33 . 45 41 5 . . 16 62 8 10 . 19 57 33 36 27 59 30 38 26 7 54 54 Haulers Intercepted 21 | . . . 3 . 3 2 . . . . 2 . . . . 3 . . . . 2 . . . 4 2 Recyclers Shooed 13 | . . . . 1 2 2 . . . . 1 . . . . 4 . . . . 1 1 . . . 1 Parts Field Recycled . | . . . . . . . . . . . . . . . . . . . . . . . . . . . Retrieved Matter . | . . . . . . . . . . . . . . . . . . . . . . . . . . . Parts Self-Destructed 128 | . . . . . . . . 2 . 13 . 1 8 . 8 . 15 23 . 58 . . . . . . Prevented 64 | . . . . . . . . 1 . 2 . 5 5 . 20 . 11 10 . 10 . . . . . . Kills | -11 -10 -10 -9 -9 -8 -7 -7 -7 -7 -6 -6 -6 -6 -6 -5 -5 -5 -5 -5 -4 -4 -4 -4 -4 -4 -3 ------- Run | Scr Mat Min Mat Min Mat Fac Low Low Dat Pro Fac Low Low Zio Pro Fac Upp Upp War Pro Fac Ext Cet Arc Hub Res Combat Hostiles Destroyed 209 | . 6 2 9 3 17 7 5 . . 10 20 5 3 . 5 12 18 12 17 17 6 5 6 . 3 21 Melee 1 | . . . . . . . . . . . . . . . . . 1 . . . . . . . . . Guns 75 | . 6 2 6 3 13 . . . . . . . 2 . 2 1 . 4 . 9 6 5 6 . 2 8 Cannons 44 | . . . . . . . 1 . . 2 14 1 1 . 1 7 7 . 6 . . . . . . 4 AOE 73 | . . . 3 . 4 7 4 . . 7 3 3 . . . 3 5 7 10 7 . . . . 1 9 Classes Destroyed 25 | . 3 . 5 1 2 2 1 . . 1 3 . . . . 1 1 . 4 1 . . . . . . Worker 15 | . . . . . . . . . . . 3 . . . . . . . . . 1 . . . 11 . Builder 19 | . . . 1 . . 2 . . . . 3 . . . . 3 . . . . 1 1 . . 2 6 Tunneler 2 | . . . . . . 1 . . . . . . . . . . . . . . . 1 . . . . Hauler 21 | . . . 3 . 3 2 . . . . 2 . . . . 3 . . . . 2 . . . 4 2 Recycler 14 | . . . . . 1 1 . . . . 4 . . . . 4 . . . . 1 1 . . 1 1 Mechanic 1 | . . . . . . 1 . . . . . . . . . . . . . . . . . . . . Operator 8 | . 1 . . . 1 . . . . . 1 . . . . . . . . . . . . 2 2 1 Watcher 12 | . 1 . . . 1 2 . . . . . . . . . 1 . . . . 3 2 1 . 1 . Swarmer 52 | . . . 3 . 10 3 . . . 7 5 . . . . 6 7 . 1 7 . . 3 . . . Grunt 85 | . 6 2 4 . 5 4 . . . 2 7 3 2 . 2 1 9 9 7 4 4 4 . . 1 9 Brawler 4 | . . . 1 . . . . . . . 1 1 . . . . . . 1 . . . . . . . Duelist 9 | . . . . . 1 . . . . . 1 . . . 1 . . . 2 . 1 . . . . 3 Protector 4 | . . . . . . . . . . . . . . . . . . . 2 1 . . . . . 1 Sentry 12 | . . . 1 . 1 . . . . . 2 . 1 . 1 . 2 1 . 1 1 . . . 1 . Demolisher 4 | . . . . . . . . . . . . . . . . . . . . 4 . . . . . . Specialist 2 | . . . . . . . . . . . . . . . . . . . 1 . . . . . . 1 Hunter 9 | . . . . . . . . . . . 3 . . . 1 1 . . 1 . . . . . . 3 Programmer 13 | . . . . . . . . . . . 1 1 . . . 3 . 2 . . . . 2 . . 4 Heavy 1 | . . . . . . . . . . . . . . . . 1 . . . . . . . . . . Behemoth 3 | . . . . . . . . . . 1 . . . . . . . . . . . 1 . . 1 . Cetus Guard 1 | . . . . . . . . . . . . . . . . . . . . . . . 1 . . . Enhanced Grunt 1 | . . . . . . . . . . . . . . . . . . . . . . . . . 1 . Striker 1 | . . . . . . . . . . . . . . . . . . . 1 . . . . . . . Executioner 1 | . . . . . . . . . . . . . . . . . . . 1 . . . . . . . Samaritan 2 | . . . . . . . . . . . . . . . . . 2 . . . . . . . . . Assembled 3 | . . . . 3 . . . . . . . . . . . . . . . . . . . . . . Savage 3 | . . . . . . . 3 . . . . . . . . . . . . . . . . . . . Butcher 1 | . . . . . . . 1 . . . . . . . . . . . . . . . . . . . Mutant 1 | . . . . . . . 1 . . . . . . . . . . . . . . . . . . . Best Kill Streak 19 | . 2 2 5 1 7 6 5 . . 4 8 4 2 . 3 9 7 9 7 8 3 3 5 1 19 19 Combat Bots Only 13 | . 2 2 4 1 6 4 5 . . 4 4 4 2 . 3 6 7 9 7 8 3 2 5 . 1 13 Max Kills in Single Turn 19 | . 1 1 2 1 4 4 2 . . 3 6 2 1 . 2 3 5 2 3 5 1 2 3 1 19 6 Gunslinging 2 | . . . . . . . . . . . . . . . . . . . . . . . 2 . . . Exploded 5 | . . . 2 . 3 3 2 . . 3 3 2 . . . 3 5 2 3 5 . . . . 1 3 Melee 1 | . . . . . . . . . . . . . . . . . 1 . . . . . . . . . Uniques/NPCs Destroyed . | . . . . . . . . . . . . . . . . . . . . . . . . . . . Combat | -11 -10 -10 -9 -9 -8 -7 -7 -7 -7 -6 -6 -6 -6 -6 -5 -5 -5 -5 -5 -4 -4 -4 -4 -4 -4 -3 -------- Run | Scr Mat Min Mat Min Mat Fac Low Low Dat Pro Fac Low Low Zio Pro Fac Upp Upp War Pro Fac Ext Cet Arc Hub Res Damage Taken 14462 | . 278 159 228 314 498 243 49 . . 161 1188 20 114 . 376 1675 1562 1156 490 319 307 252 81 49 880 4063 Core 2480 | . 79 42 36 . 69 27 . . . 19 45 . . . 79 260 126 65 103 70 29 20 . 17 94 1300 Absorbed by Shields 1823 | . . . . . . 50 . . . . . . . . . . . . 180 115 115 93 29 18 322 901 Redirected to Shielding 94 | . . . . . . . . . . . . . . . . 94 . . . . . . . . . . Regen/Repaired (Parts) 242 | . 68 . . . 11 . . . . . . . . . . . . . . . 163 . . . . . Core Remaining (%) 78 | 100 . 51 . 91 87 . . . . 93 . . . . 85 . . . . 37 . . . . 86 . Volleys Fired 735 | . 26 7 51 24 55 22 7 . . 13 63 11 39 2 14 72 37 26 22 50 32 35 16 18 29 64 Largest 3 | . 2 2 2 2 2 2 2 . . 2 2 1 2 2 2 2 2 2 2 2 3 3 3 3 3 3 Hottest 243 | . 90 90 100 46 79 138 138 . . 138 159 90 129 129 129 180 154 66 200 76 114 114 240 114 114 243 Shots Fired 1438 | . 49 13 83 48 106 39 10 . . 22 122 11 45 4 27 135 55 45 34 91 73 106 38 53 85 144 Gun 954 | . 49 13 67 48 102 11 . . . . . . 10 2 13 18 13 38 12 85 73 106 38 53 85 118 Cannon 403 | . . . . . . 23 6 . . 18 120 6 35 2 13 114 41 . 12 . . . . . . 13 Launcher 67 | . . . 2 . 4 5 4 . . 4 2 5 . . 1 3 1 7 10 6 . . . . . 13 Special 14 | . . . 14 . . . . . . . . . . . . . . . . . . . . . . . Kinetic 857 | . . 2 42 48 94 5 . . . . 37 . . . . 8 19 38 12 85 73 106 34 53 85 116 Thermal 273 | . 49 11 39 . 8 5 . . . . 26 6 33 . . 87 5 . . . . . 4 . . . Explosive 36 | . . . 2 . 4 5 4 . . 4 2 . . . . . 1 . . 1 . . . . . 13 Electromagnetic 247 | . . . . . . 24 6 . . 18 57 5 12 4 27 40 30 7 10 5 . . . . . 2 Entropic 25 | . . . . . . . . . . . . . . . . . . . 12 . . . . . . 13 Robot Hit Streak 29 | . 7 10 29 5 11 13 2 . . 13 16 6 9 3 7 15 16 16 7 13 11 13 14 7 8 15 Robot Miss Streak 5 | . 2 1 2 5 5 2 2 . . 1 2 1 1 1 1 4 1 2 4 2 2 3 1 3 5 4 Penetration Max 2 | . . . . . . . . . . . 1 . . . . . . . 1 . 1 1 1 1 1 2 Secondary Targets 13 | . . . 1 . 3 . . . . . . . 1 . . . . . . 1 1 1 3 . 1 1 Max Gunslinging Chain 2 | . . . 1 . 1 . . . . . . . 1 . . . . . . 1 1 1 2 . 1 1 Shots Hit Robots 910 | . 30 12 54 26 63 23 3 . . 16 84 7 10 3 20 81 42 27 18 81 47 71 29 35 41 87 Core Hits 563 | . 19 5 25 8 35 17 9 . . 15 41 8 6 . 9 41 23 25 39 56 22 26 11 14 45 64 Critical Kills 23 | . . . . . . . . . . . . . . . . 2 . 1 . 4 6 3 2 . 1 4 Critical Parts Destroyed 34 | . . . . . . . . . . . . . . . . . . . 1 5 1 5 2 2 3 15 Critical Strikes 108 | . 2 . . . 1 2 1 . . 1 13 . 1 . 1 3 6 1 11 13 7 8 5 2 4 26 Burn 3 | . 2 . . . 1 . . . . . . . . . . . . . . . . . . . . . Meltdown 2 | . . . . . . . . . . . . . . . . 2 . . . . . . . . . . Destroy 58 | . . . . . . . . . . . . . . . . . . 1 1 11 7 8 5 2 4 19 Blast 11 | . . . . . . . . . . . 9 . . . . . 2 . . . . . . . . . Corrupt 15 | . . . . . . 2 1 . . 1 4 . 1 . 1 1 4 . . . . . . . . . Impale 2 | . . . . . . . . . . . . . . . . . . . . 2 . . . . . . Sunder 17 | . . . . . . . . . . . . . . . . . . . 10 . . . . . . 7 Melee Attacks 58 | . . . . . . . . . . 5 13 . . . . . . . 12 25 . . . . . 3 Impact . | . . . . . . . . . . . . . . . . . . . . . . . . . . . Slashing 18 | . . . . . . . . . . 5 13 . . . . . . . . . . . . . . . Piercing 40 | . . . . . . . . . . . . . . . . . . . 12 25 . . . . . 3 Sneak Attacks 5 | . . . . . . . . . . . 5 . . . . . . . . . . . . . . . Combat Hostiles . | . . . . . . . . . . . . . . . . . . . . . . . . . . . Follow-up Attacks . | . . . . . . . . . . . . . . . . . . . . . . . . . . . Damage Inflicted 39764 | . 366 150 705 407 1396 1396 661 . . 965 3604 579 243 80 605 3208 1744 1520 2870 3085 1465 2442 1105 1232 3393 6543 Guns 16297 | . 366 150 644 401 957 129 . . . . . . 180 22 265 291 192 733 359 1285 1465 2442 1105 1232 1502 2577 Cannons 9851 | . . . . . . 580 76 . . 326 2470 160 63 58 278 2227 1250 . 1191 . . . . . . 1172 Explosions 12255 | . . . 61 . 434 687 585 . . 639 808 419 . . 62 690 292 787 1320 827 . . . . 1891 2753 Melee 1299 | . . . . . . . . . . . 326 . . . . . . . . 973 . . . . . . Ramming 62 | . . . . 6 5 . . . . . . . . . . . 10 . . . . . . . . 41 Kinetic 15978 | . . 23 422 401 870 84 . . . . 808 . . . . 122 592 733 359 1285 1465 2442 1105 1232 1502 2533 Thermal 5050 | . 366 127 222 . 87 45 . . . 122 662 217 . . . 2106 93 153 615 123 . . . . 112 . Explosive 6304 | . . . 61 . 434 687 585 . . 517 638 . . . . . 292 . . 337 . . . . . 2753 Electromagnetic 8708 | . . . . . . 580 76 . . 326 1170 362 243 80 605 980 757 634 705 367 . . . . 1779 44 Impact . | . . . . . . . . . . . . . . . . . . . . . . . . . . . Slashing 326 | . . . . . . . . . . . 326 . . . . . . . . . . . . . . . Piercing 973 | . . . . . . . . . . . . . . . . . . . . 973 . . . . . . Entropic 2363 | . . . . . . . . . . . . . . . . . . . 1191 . . . . . . 1172 Highest Corruption 76 | . . . 1 1 . . . . . 2 1 1 1 12 . 52 54 76 76 . . 3 3 3 2 14 Average Corruption 24 | . . . 1 1 . . . . . 2 1 1 1 3 . 16 53 72 76 . . 3 3 2 1 10 Corruption Purged 3 | . . . . . . . . . . . . . . . . . . . . . . . . 3 . . Corruption Blocked . | . . . . . . . . . . . . . . . . . . . . . . . . . . . Effects 231 | . . . 1 1 . . . . . . 1 4 7 . . 28 91 57 4 . . 7 3 6 . 21 Message Errors 55 | . . . . . . . . . . . . . 2 . . 6 16 18 1 . . 1 2 3 . 6 Matter Fused 49 | . . . . 1 . . . . . . . 2 2 . . 4 23 8 1 . . 1 . . . 7 Heat Flow Errors 25 | . . . . . . . . . . . . 1 1 . . 3 12 7 . . . . . . . 1 Energy Discharges 22 | . . . . . . . . . . . . 1 . . . 2 9 5 2 . . . . 2 . 1 Parts Rejected 5 | . . . 1 . . . . . . . 1 . . . . 1 1 1 . . . . . . . . Data Loss (minor) 27 | . . . . . . . . . . . . . 1 . . 6 11 6 . . . 3 . . . . Data Loss (major) 12 | . . . . . . . . . . . . . 1 . . . 5 2 . . . 2 1 1 . . Misfires 8 | . . . . . . . . . . . . . . . . . 3 4 . . . . . . . 1 Alerts 7 | . . . . . . . . . . . . . . . . 1 3 3 . . . . . . . . Misdirections 7 | . . . . . . . . . . . . . . . . 2 1 . . . . . . . . 4 Weapon Failures 14 | . . . . . . . . . . . . . . . . 3 7 3 . . . . . . . 1 Overload Shots 2 | . . . . . . . . . . . . . . . . . . . . . . . 2 . . . Overflow Damage 748 | . . . . . 27 28 . . . 23 140 74 . . . 106 2 29 . 41 . . . . 64 214 Projectiles 330 | . . . . . . 28 . . . 23 81 74 . . . 38 2 . . . . . . . . 84 Explosions 359 | . . . . . 27 . . . . . 21 . . . . 68 . 29 . 20 . . . . 64 130 Melee 59 | . . . . . . . . . . . 38 . . . . . . . . 21 . . . . . . Knockbacks 9 | . . . . . . . . . . . 9 . . . . . . . . . . . . . . . Impact . | . . . . . . . . . . . . . . . . . . . . . . . . . . . Kinetic 9 | . . . . . . . . . . . 9 . . . . . . . . . . . . . . . Secondary . | . . . . . . . . . . . . . . . . . . . . . . . . . . . Self-Inflicted Damage 290 | . . . . . . . . . . . . . . . . 77 27 5 . . . . . . 85 96 Shots 9 | . . . . . . . . . . . . . . . . 2 2 1 . . . . . . 1 3 Rammed 9 | . . . . . . . . . . . . . . . . . 1 . . . . . . . . 8 Targets Rammed 13 | . . . . 1 1 . . . . . . . . . . . 2 . . . . . . . . 9 Kicked 3 | . . . . 1 1 . . . . . . . . . . . . . . . . . . . . 1 Crushed 1 | . . . . . . . . . . . . . . . . . 1 . . . . . . . . . Highest Temperature 381 | . 195 198 80 5 . 78 21 . . 108 336 67 149 36 38 381 365 193 288 303 234 . 268 . 18 362 Average Temperature 74 | . 73 125 35 5 . 21 14 . . 43 58 47 32 18 17 60 100 75 117 95 68 . 144 . 10 167 Received Heat Transfer 2946 | . 156 96 69 60 135 27 . . . 90 195 9 42 . 54 198 490 433 30 21 80 54 . . 191 516 Effects 6 | . . . . . . . . . . . . . . . . 1 2 . . . 2 . . . . 1 Shutdowns 3 | . . . . . . . . . . . . . . . . 1 1 . . . . . . . . 1 Interference 2 | . . . . . . . . . . . . . . . . . . . . . 2 . . . . . Short Circuit 1 | . . . . . . . . . . . . . . . . . 1 . . . . . . . . . Siege Activations . | . . . . . . . . . . . . . . . . . . . . . . . . . . . Robots Corrupted 17 | . . . . . . 1 . . . 1 3 1 . . 2 1 5 1 1 1 . . . . . . Combat Hostiles 16 | . . . . . . . . . . 1 3 1 . . 2 1 5 1 1 1 . . . . . . Parts Fried 54 | . . . . . . 4 . . . 2 10 1 1 . 5 13 6 4 2 2 . 1 . . 3 . Impact Corruptions . | . . . . . . . . . . . . . . . . . . . . . . . . . . . Robots Melted 2 | . . . . . . . . . . . . . . . . 2 . . . . . . . . . . Combat Hostiles . | . . . . . . . . . . . . . . . . . . . . . . . . . . . Parts Melted 9 | . . 1 . . . . . . . . 1 . . . . 7 . . . . . . . . . . Heat Transferred 7594 | . 1139 323 500 . 296 74 . . . 100 900 250 . . . 2821 111 100 700 180 . . . . 100 . Parts Sabotaged 4 | . . . . . . . . . . . . . . . . 4 . . . . . . . . . . Parts Stolen . | . . . . . . . . . . . . . . . . . . . . . . . . . . . Parts Stripped . | . . . . . . . . . . . . . . . . . . . . . . . . . . . Power Chain Reactions 21 | . . . . . . . . . . 1 3 2 . . . 2 . 1 8 1 . . . . 3 . Missiles Intercepted . | . . . . . . . . . . . . . . . . . . . . . . . . . . . Alert | -11 -10 -10 -9 -9 -8 -7 -7 -7 -7 -6 -6 -6 -6 -6 -5 -5 -5 -5 -5 -4 -4 -4 -4 -4 -4 -3 ------- Run | Scr Mat Min Mat Min Mat Fac Low Low Dat Pro Fac Low Low Zio Pro Fac Upp Upp War Pro Fac Ext Cet Arc Hub Res Peak Influence 2310 | . 155 74 226 52 305 259 . . . . 624 . . . . 1451 . . . . 400 862 863 609 1737 2310 Initial 911 | . . 19 28 52 . 138 . . . . 69 . . . . 32 . . . . 29 196 482 345 212 911 Average 423 | . 66 71 98 16 83 100 . . . . 323 . . . . 690 . . . . 216 540 707 568 702 1408 Maximum Alert Level 5 | . . . 1 . 1 1 . . . . 2 . . . . 4 . . . . 2 3 3 2 5 5 Low Security (%) 44 | 100 100 100 78 100 80 93 . . . . 13 . . . . 9 . . . . 58 3 . . . . Level 1 19 | . . . 21 . 19 6 . . . . 62 . . . . 14 . . . . 37 24 . 5 28 . Level 2 15 | . . . . . . . . . . . 24 . . . . 29 . . . . 3 50 60 95 24 . Level 3 8 | . . . . . . . . . . . . . . . . 28 . . . . . 21 39 . 24 16 Level 4 8 | . . . . . . . . . . . . . . . . 17 . . . . . . . . 15 57 Level 5 2 | . . . . . . . . . . . . . . . . . . . . . . . . . 6 17 High Security . | . . . . . . . . . . . . . . . . . . . . . . . . . . 8 Max Security . | . . . . . . . . . . . . . . . . . . . . . . . . . . . Squads Dispatched 54 | . 2 . 1 . 6 3 . . . . 8 . . . . 10 . . . . 3 2 . . 7 12 Investigation 8 | . . . . . 1 1 . . . . 2 . . . . 2 . . . . . 1 . . . 1 Extermination 9 | . . . . . . 1 . . . . 1 . . . . 2 . . . . 2 . . . 1 2 Reinforcement 24 | . 2 . 1 . 1 1 . . . . 4 . . . . 4 . . . . . 1 . . 6 4 Assault 7 | . . . . . . . . . . . . . . . . 2 . . . . . . . . . 5 Garrison 6 | . . . . . 4 . . . . . 1 . . . . . . . . . 1 . . . . . Intercept . | . . . . . . . . . . . . . . . . . . . . . . . . . . . Searches Triggered . | . . . . . . . . . . . . . . . . . . . . . . . . . . . Data Miner Redirects 8 | . . . . . . . . . . . 2 . . . . 2 . . . . . 1 . . . 3 Construction Impeded 6 | . . . . . . 1 . . . . 2 . . . . . . . . . . 1 . . 1 1 Haulers Reinforced 4 | . . . . . . . . . . . . . . . . . . . . . . . . . 2 2 Active Scanning Responses . | . . . . . . . . . . . . . . . . . . . . . . . . . . . Cargo Convoy Interrupts . | . . . . . . . . . . . . . . . . . . . . . . . . . . . Stealth | -11 -10 -10 -9 -9 -8 -7 -7 -7 -7 -6 -6 -6 -6 -6 -5 -5 -5 -5 -5 -4 -4 -4 -4 -4 -4 -3 --------- Run | Scr Mat Min Mat Min Mat Fac Low Low Dat Pro Fac Low Low Zio Pro Fac Upp Upp War Pro Fac Ext Cet Arc Hub Res Distress Signals 30 | . . . . . 2 1 . . . . . . . . . 1 . . . 15 1 4 . . 2 4 Communications Jammed 50 | . . . . . . . . . . . . . . . . 29 . . . . . . . . . 21 Distress Signals 41 | . . . . . . . . . . . . . . . . 20 . . . . . . . . . 21 Times Spotted 468 | . 11 2 11 9 28 14 6 . . 10 24 6 4 1 9 49 19 12 53 26 15 26 10 13 34 76 Peak Tracking Total 20 | . 2 2 4 4 6 5 5 . . 3 4 4 2 1 4 7 5 4 20 5 3 5 6 2 13 11 Tactical Retreats 22 | . . . . 3 . . . . . . 1 2 1 . 1 4 1 . 1 . . 1 . . 1 6 Traps | -11 -10 -10 -9 -9 -8 -7 -7 -7 -7 -6 -6 -6 -6 -6 -5 -5 -5 -5 -5 -4 -4 -4 -4 -4 -4 -3 ------- Run | Scr Mat Min Mat Min Mat Fac Low Low Dat Pro Fac Low Low Zio Pro Fac Upp Upp War Pro Fac Ext Cet Arc Hub Res Traps Triggered 6 | . . . . . 1 . . . . . 1 . . . . 2 1 . 1 . . . . . . . Indirectly . | . . . . . . . . . . . . . . . . . . . . . . . . . . . Trap Hack Attempts . | . . . . . . . . . . . . . . . . . . . . . . . . . . . Triggered . | . . . . . . . . . . . . . . . . . . . . . . . . . . . Disarmed . | . . . . . . . . . . . . . . . . . . . . . . . . . . . Reprogrammed . | . . . . . . . . . . . . . . . . . . . . . . . . . . . Reused . | . . . . . . . . . . . . . . . . . . . . . . . . . . . Traps Extracted . | . . . . . . . . . . . . . . . . . . . . . . . . . . . Installed . | . . . . . . . . . . . . . . . . . . . . . . . . . . . Triggered 12 | . . . . . . . . . . . . . 2 . . . 1 . 9 . . . . . . . Machines | -11 -10 -10 -9 -9 -8 -7 -7 -7 -7 -6 -6 -6 -6 -6 -5 -5 -5 -5 -5 -4 -4 -4 -4 -4 -4 -3 ---------- Run | Scr Mat Min Mat Min Mat Fac Low Low Dat Pro Fac Low Low Zio Pro Fac Upp Upp War Pro Fac Ext Cet Arc Hub Res Machines Disabled 49 | . . . 1 . 1 1 . . . . 8 . . . . 7 3 . 2 6 3 . 1 4 7 5 Max in Single Turn 3 | . . . 1 . 1 1 . . . . 3 . . . . 1 1 . 1 2 1 . 1 1 2 1 Garrison Access 3 | . . . . . . . . . . . 1 . . . . 1 . . . . . . . . . 1 Network Hub 1 | . . . . . . . . . . . . . . . . . . . . . . . . . 1 . Machines Sabotaged . | . . . . . . . . . . . . . . . . . . . . . . . . . . . Garrisons Compromised . | . . . . . . . . . . . . . . . . . . . . . . . . . . . Overloaded Fab Kills . | . . . . . . . . . . . . . . . . . . . . . . . . . . . Hacking | -11 -10 -10 -9 -9 -8 -7 -7 -7 -7 -6 -6 -6 -6 -6 -5 -5 -5 -5 -5 -4 -4 -4 -4 -4 -4 -3 --------- Run | Scr Mat Min Mat Min Mat Fac Low Low Dat Pro Fac Low Low Zio Pro Fac Upp Upp War Pro Fac Ext Cet Arc Hub Res Machines Accessed 42 | . 1 . 1 1 6 8 1 . 4 1 4 1 . . . 2 2 . 2 . 1 . 1 . . 6 Terminals 15 | . . . 1 1 3 4 . . . 1 3 . . . . . 1 . . . . . 1 . . . Fabricators 6 | . . . . . . 3 . . . . . . . . . . . . . . . . . . . 3 Repair Stations 4 | . 1 . . . 1 . . . . . . . . . . 1 . . . . 1 . . . . . Recycling Units 1 | . . . . . 1 . . . . . . . . . . . . . . . . . . . . . Scanalyzers 4 | . . . . . 1 1 . . . . . . . . . . . . . . . . . . . 2 Garrison Access 3 | . . . . . . . . . . . 1 . . . . 1 . . . . . . . . . 1 Total Hacks 123 | . 2 . 2 2 17 21 1 . 28 1 8 1 . . . 7 6 . 5 . 6 . 2 . . 14 Successful 80 | . 2 . 1 . 9 9 1 . 28 1 5 1 . . . 2 6 . 5 . 4 . . . . 6 Failed 43 | . . . 1 2 8 12 . . . . 3 . . . . 5 . . . . 2 . 2 . . 8 Catastrophic 9 | . . . . 1 . 2 . . . . 1 . . . . 1 . . . . . . 1 . . 3 Database Lockouts . | . . . . . . . . . . . . . . . . . . . . . . . . . . . Manual 66 | . . . . 3 6 9 . . . . 8 . . . . 13 . . 1 . 5 . 1 . 5 15 Terminals 43 | . . . 2 2 9 15 . . . 1 7 . . . . . 5 . . . . . 2 . . . Fabricators 12 | . . . . . . 4 . . . . . . . . . . . . . . . . . . . 8 Repair Stations 14 | . 2 . . . 3 . . . . . . . . . . 3 . . . . 6 . . . . . Recycling Units 2 | . . . . . 2 . . . . . . . . . . . . . . . . . . . . . Scanalyzers 9 | . . . . . 3 2 . . . . . . . . . . . . . . . . . . . 4 Garrison Access 7 | . . . . . . . . . . . 1 . . . . 4 . . . . . . . . . 2 Terminal Hacks 54 | . . . 1 . 4 4 1 . 28 1 3 1 . . . . 6 . 5 . . . . . . . Record 21 | . . . . . . . . . 11 1 . . . . . . 5 . 4 . . . . . . . Part Schematic 10 | . . . . . . . . . 10 . . . . . . . . . . . . . . . . . Robot Schematic 4 | . . . . . . . . . 4 . . . . . . . . . . . . . . . . . Prototype ID Bank 4 | . . . . . . 1 . . 3 . . . . . . . . . . . . . . . . . Open Door 4 | . . . . . . . 1 . . . . 1 . . . . 1 . 1 . . . . . . . Level Access Points 1 | . . . 1 . . . . . . . . . . . . . . . . . . . . . . . Branch Access Points 2 | . . . . . . 1 . . . . 1 . . . . . . . . . . . . . . . Terminal Index 1 | . . . . . 1 . . . . . . . . . . . . . . . . . . . . . Unreport Threat 1 | . . . . . 1 . . . . . . . . . . . . . . . . . . . . . Locate Traps 2 | . . . . . . 2 . . . . . . . . . . . . . . . . . . . . Transport Status 1 | . . . . . . . . . . . 1 . . . . . . . . . . . . . . . Hauler Manifests 1 | . . . . . 1 . . . . . . . . . . . . . . . . . . . . . Zone Layout 2 | . . . . . 1 . . . . . 1 . . . . . . . . . . . . . . . Fabricator Hacks 5 | . . . . . . 2 . . . . . . . . . . . . . . . . . . . 3 Network Status 1 | . . . . . . 1 . . . . . . . . . . . . . . . . . . . . Load Schematic 2 | . . . . . . . . . . . . . . . . . . . . . . . . . . 2 Build 2 | . . . . . . 1 . . . . . . . . . . . . . . . . . . . 1 Repair Station Hacks 9 | . 2 . . . 2 . . . . . . . . . . 1 . . . . 4 . . . . . Scan Component 5 | . 1 . . . 1 . . . . . . . . . . 1 . . . . 2 . . . . . Repair 4 | . 1 . . . 1 . . . . . . . . . . . . . . . 2 . . . . . Recycling Unit Hacks . | . . . . . . . . . . . . . . . . . . . . . . . . . . . Scanalyzer 4 | . . . . . 2 . . . . . . . . . . . . . . . . . . . . 2 Insert Component 3 | . . . . . 1 . . . . . . . . . . . . . . . . . . . . 2 Analyze 1 | . . . . . 1 . . . . . . . . . . . . . . . . . . . . . Garrison Access Hacks . | . . . . . . . . . . . . . . . . . . . . . . . . . . . Unauthorized Hacks 8 | . . . . . 1 3 . . . . 2 . . . . 1 . . . . . . . . . 1 Terminals 5 | . . . . . 1 3 . . . . 1 . . . . . . . . . . . . . . . Track 2 | . . . . . 1 1 . . . . . . . . . . . . . . . . . . . . Botnet 3 | . . . . . . 2 . . . . 1 . . . . . . . . . . . . . . . Fabricators . | . . . . . . . . . . . . . . . . . . . . . . . . . . . Repair Stations . | . . . . . . . . . . . . . . . . . . . . . . . . . . . Recycling Units . | . . . . . . . . . . . . . . . . . . . . . . . . . . . Scanalyzers . | . . . . . . . . . . . . . . . . . . . . . . . . . . . Garrison Access 3 | . . . . . . . . . . . 1 . . . . 1 . . . . . . . . . 1 Jam 3 | . . . . . . . . . . . 1 . . . . 1 . . . . . . . . . 1 Data Cores Recovered 2 | . . . . . . . . . . . . . . . . . . . . . . . . . 1 1 Used . | . . . . . . . . . . . . . . . . . . . . . . . . . . . Hacking Detections 30 | . 1 . 1 1 6 8 . . . . 3 . . . . 2 1 . . . 1 . 1 . . 5 Full Trace Events 5 | . . . . . 2 1 . . . . 1 . . . . . 1 . . . . . . . . . Feedback Events . | . . . . . . . . . . . . . . . . . . . . . . . . . . . Feedback Blocked . | . . . . . . . . . . . . . . . . . . . . . . . . . . . Robot Schematics Acquired 4 | . . . . . . . . . 4 . . . . . . . . . . . . . . . . . Robots Built 5 | . . . . . . 3 . . . . . . . . . . . . . . . . . . . 2 Authchips 1 | . . . . . . . . . . . . . . . . . . . . . . . . . . 1 Time 108 | . . . . . . 58 . . . . . . . . . . . . . . . . . . . 50 Total Robot Build Rating 19 | . . . . . . 9 . . . . . . . . . . . . . . . . . . . 10 Part Schematics Acquired 11 | . . . . . 1 . . . 10 . . . . . . . . . . . . . . . . . Parts Built . | . . . . . . . . . . . . . . . . . . . . . . . . . . . Authchips . | . . . . . . . . . . . . . . . . . . . . . . . . . . . Time . | . . . . . . . . . . . . . . . . . . . . . . . . . . . Total Part Build Rating . | . . . . . . . . . . . . . . . . . . . . . . . . . . . Parts Repaired 4 | . 1 . . . 1 . . . . . . . . . . . . . . . 2 . . . . . Time 378 | . 26 . . . 108 . . . . . . . . . . . . . . . 244 . . . . . Parts Recycled . | . . . . . . . . . . . . . . . . . . . . . . . . . . . Recycled Matter . | . . . . . . . . . . . . . . . . . . . . . . . . . . . Retrieved Matter . | . . . . . . . . . . . . . . . . . . . . . . . . . . . Retrieved Components . | . . . . . . . . . . . . . . . . . . . . . . . . . . . Parts Scanalyzed 2 | . . . . . 1 . . . . . . . . . . . . . . . . . . . . 1 Part Schematics Acquired 1 | . . . . . 1 . . . . . . . . . . . . . . . . . . . . . Parts Damaged . | . . . . . . . . . . . . . . . . . . . . . . . . . . . Bothacking | -11 -10 -10 -9 -9 -8 -7 -7 -7 -7 -6 -6 -6 -6 -6 -5 -5 -5 -5 -5 -4 -4 -4 -4 -4 -4 -3 ------------ Run | Scr Mat Min Mat Min Mat Fac Low Low Dat Pro Fac Low Low Zio Pro Fac Upp Upp War Pro Fac Ext Cet Arc Hub Res Used RIF Installer . | . . . . . . . . . . . . . . . . . . . . . . . . . . . Robots Hacked . | . . . . . . . . . . . . . . . . . . . . . . . . . . . Non-combat . | . . . . . . . . . . . . . . . . . . . . . . . . . . . Combat . | . . . . . . . . . . . . . . . . . . . . . . . . . . . Robot Hacks Applied . | . . . . . . . . . . . . . . . . . . . . . . . . . . . Relay Couplers Released 4 | . . . . . . . . . . . . . . . . 4 . . . . . . . . . . Programmers 4 | . . . . . . . . . . . . . . . . 4 . . . . . . . . . . Fabnet Peak Effective % . | . . . . . . . . . . . . . . . . . . . . . . . . . . . Robots Rewired 16 | . . . . . . . 2 . . . . . . . . . . . 5 2 . 7 . . . . Allies Hacked . | . . . . . . . . . . . . . . . . . . . . . . . . . . . Hacks Repelled . | . . . . . . . . . . . . . . . . . . . . . . . . . . . Allies | -11 -10 -10 -9 -9 -8 -7 -7 -7 -7 -6 -6 -6 -6 -6 -5 -5 -5 -5 -5 -4 -4 -4 -4 -4 -4 -3 -------- Run | Scr Mat Min Mat Min Mat Fac Low Low Dat Pro Fac Low Low Zio Pro Fac Upp Upp War Pro Fac Ext Cet Arc Hub Res Total Allies 52 | . . . . 4 . 3 2 . . 1 . . . 4 . 2 . . 5 2 3 9 2 . 2 13 Largest Group 10 | . . . . 4 . 3 2 2 2 3 2 . . 4 3 5 . . 5 2 3 10 4 4 6 4 Highest-Rated Group 601 | . . . . 77 . 48 51 51 51 147 120 . . 153 115 289 . . 263 98 288 601 345 289 495 398 Highest-Rated Ally 159 | . . . . 31 . 16 31 31 31 96 89 . . 40 40 146 . . 65 65 96 159 152 96 103 103 Zionite Dispatches 8 | . . . . . . . . . . . . . . . . 2 . . . . 1 . . . 1 4 Heavy 2 | . . . . . . . . . . . . . . . . . . . . . . . . . 1 1 Light 3 | . . . . . . . . . . . . . . . . . . . . . 1 . . . . 2 Hero 1 | . . . . . . . . . . . . . . . . 1 . . . . . . . . . . Offense Resupply 1 | . . . . . . . . . . . . . . . . 1 . . . . . . . . . . Hacking Resupply 1 | . . . . . . . . . . . . . . . . . . . . . . . . . . 1 Total Orders 11 | . . . . . . . . . . 3 . . . . . 2 . . . 1 . . 3 . . 2 STAY 2 | . . . . . . . . . . 1 . . . . . . . . . . . . 1 . . . ROAM 3 | . . . . . . . . . . . . . . . . 1 . . . 1 . . . . . 1 FOLLOW 4 | . . . . . . . . . . 2 . . . . . . . . . . . . 2 . . . DROP 2 | . . . . . . . . . . . . . . . . 1 . . . . . . . . . 1 Ally Attacks 552 | . . . . 16 . 15 6 . . 28 12 . . . 17 83 . . 37 13 21 97 25 10 88 84 Total Damage 20767 | . . . . 156 . 197 67 . . 692 498 . . . 247 4283 . . 1446 503 1107 3049 864 324 3882 3452 Kills 138 | . . . . 4 . 4 . . . 1 1 . . . 3 31 . . 13 3 6 20 5 4 19 24 Allies Corrupted 1 | . . . . 1 . . . . . . . . . . . . . . . . . . . . . . Allies Melted 2 | . . . . . . . . . . 1 . . . . . . . . . . . 1 . . . . Intel | -11 -10 -10 -9 -9 -8 -7 -7 -7 -7 -6 -6 -6 -6 -6 -5 -5 -5 -5 -5 -4 -4 -4 -4 -4 -4 -3 ------- Run | Scr Mat Min Mat Min Mat Fac Low Low Dat Pro Fac Low Low Zio Pro Fac Upp Upp War Pro Fac Ext Cet Arc Hub Res Robot Analysis Total . | . . . . . . . . . . . . . . . . . . . . . . . . . . . Derelict Logs Recovered 13 | . . 1 . 1 . . 1 2 . . . 2 2 2 1 . . . . 1 . . . . . . Drone Launches . | . . . . . . . . . . . . . . . . . . . . . . . . . . . Drone Recoveries . | . . . . . . . . . . . . . . . . . . . . . . . . . . . Zionite Intel Received 2 | . . . . . . . . . . . . . . . . . . . . . 1 . . . 1 . Branch Access 1 | . . . . . . . . . . . . . . . . . . . . . 1 . . . . . Active Terminals 1 | . . . . . . . . . . . . . . . . . . . . . . . . . 1 . Exploration | -11 -10 -10 -9 -9 -8 -7 -7 -7 -7 -6 -6 -6 -6 -6 -5 -5 -5 -5 -5 -4 -4 -4 -4 -4 -4 -3 ------------- Run | Scr Mat Min Mat Min Mat Fac Low Low Dat Pro Fac Low Low Zio Pro Fac Upp Upp War Pro Fac Ext Cet Arc Hub Res Turns Passed 20486 | 66 533 268 430 456 1113 990 1034 578 107 628 1321 515 988 1656 522 1165 1547 905 1538 801 775 711 257 240 274 1068 Spaces Moved 12175 | 36 255 153 156 259 357 631 789 452 81 425 713 336 706 1307 384 675 623 427 728 487 560 420 169 69 158 819 Core 273 | 3 . . . . . . . . . . . . . . . . . . . . . . . . . 270 Treads 1122 | 33 255 153 . . . . . . . . . . . . . 8 623 50 . . . . . . . . Legs 10780 | . . . 156 259 357 631 789 452 81 425 713 336 706 1307 384 667 . 377 728 487 560 420 169 69 158 549 Wheels . | . . . . . . . . . . . . . . . . . . . . . . . . . . . Hover . | . . . . . . . . . . . . . . . . . . . . . . . . . . . Flight . | . . . . . . . . . . . . . . . . . . . . . . . . . . . Fastest Speed 50 | 50 160 160 120 120 120 122 127 127 127 127 124 124 124 120 120 120 166 166 110 110 110 110 110 110 110 50 Average Speed 132 | 150 160 160 143 134 120 125 127 127 127 127 125 124 124 120 120 126 220 189 179 110 110 110 110 110 110 91 Slowest Speed 330 | 160 160 160 190 190 122 127 127 127 127 127 126 124 124 124 120 190 250 330 190 110 110 110 110 110 110 184 Overloaded Moves . | . . . . . . . . . . . . . . . . . . . . . . . . . . . Propulsion Burnouts . | . . . . . . . . . . . . . . . . . . . . . . . . . . . Robots Hopped 1 | . . . . . . . . . . . . . . . . . . . . . . 1 . . . . Cave-ins Triggered . | . . . . . . . . . . . . . . . . . . . . . . . . . . . Exploration Rate (%) 49 | 3 34 32 17 70 31 21 65 50 69 54 21 49 75 89 66 19 67 61 80 61 13 64 75 85 32 22 Regions Visited 26 Branch Regions 18 Pre-discovered Areas 7 | . . 1 . . . . . 1 1 . . . . 3 . . 1 . . . . . . . . . Known Exits Taken 18 | . . . . 1 . 1 1 1 1 1 1 1 1 1 1 1 1 1 1 1 1 . . . 1 . Unknown Exits Taken 8 | 1 1 1 1 . 1 . . . . . . . . . . . . . . . . 1 1 1 . . Scrap Searched 34 | . . . . 1 . . 7 3 . 1 . 1 7 3 1 . 3 5 . 2 . . . . . . Spaces Dug 106 | . . . 4 . . . . . . 4 22 . 8 . . 8 42 . 6 3 . . . . 2 7 Terrain Destroyed 906 | . . . 14 . 30 33 36 . . 53 84 17 33 . . 56 44 14 28 24 27 29 . 30 253 101 Melee 18 | . . . . . . . . . . 4 8 . . . . . . . 4 . . . . . . 2 Projectile 302 | . . . 7 . . . . . . . 13 2 33 . . 29 2 3 8 7 26 29 . 30 73 40 AOE 584 | . . . 7 . 30 33 36 . . 49 63 15 . . . 27 42 11 16 17 . . . . 180 58 Terrain Rammed . | . . . . . . . . . . . . . . . . . . . . . . . . . . . Walls Destroyed . | . . . . . . . . . . . . . . . . . . . . . . . . . . . Machines Disabled . | . . . . . . . . . . . . . . . . . . . . . . . . . . . Actions | -11 -10 -10 -9 -9 -8 -7 -7 -7 -7 -6 -6 -6 -6 -6 -5 -5 -5 -5 -5 -4 -4 -4 -4 -4 -4 -3 --------- Run | Scr Mat Min Mat Min Mat Fac Low Low Dat Pro Fac Low Low Zio Pro Fac Upp Upp War Pro Fac Ext Cet Arc Hub Res Total 15118 | 45 331 163 253 321 934 791 813 456 85 483 998 423 774 1384 417 850 731 476 910 628 653 592 209 192 195 1011 Wait 1360 | . 38 . 11 20 499 72 . 5 5 21 149 59 23 67 6 28 38 3 25 28 43 49 12 101 5 53 Move 12148 | 35 254 152 155 258 357 630 788 451 80 424 712 335 705 1306 383 674 622 426 727 486 559 417 168 68 157 819 Hop 1 | . . . . . . . . . . . . . . . . . . . . . . 1 . . . . Pick Up 122 | 4 7 1 8 4 6 13 4 . . 5 11 5 1 3 2 15 5 2 5 . 5 2 3 . . 11 Fast Attach 106 | 6 2 . 5 1 3 10 1 . . . 10 . . . 1 13 10 6 15 3 3 1 2 2 . 12 Attach 47 | . . 1 4 2 3 1 . . . . 4 1 1 1 1 9 3 1 3 . 2 1 1 . . 8 Detach 18 | . . . 4 . . . . . . . . . . . . 3 2 1 4 2 . . . . . 2 Swap 157 | . 2 1 8 4 6 19 3 . . 10 17 6 3 3 6 15 4 5 11 11 3 3 3 1 2 11 Drop 184 | . 2 1 7 7 5 24 4 . . 5 19 6 2 2 4 21 8 6 21 4 6 5 4 2 2 17 Fire 735 | . 26 7 51 24 55 22 7 . . 13 63 11 39 2 14 72 37 26 22 50 32 35 16 18 29 64 Melee 58 | . . . . . . . . . . 5 13 . . . . . . . 12 25 . . . . . 3 Ram 10 | . . . . . . . . . . . . . . . . . . . . . . . . . . 10 Kick 2 | . . . . 1 . . . . . . . . . . . . . . . . . . . . . 1 Crush 2 | . . . . . . . . . . . . . . . . . 2 . . . . . . . . . Escape Stasis . | . . . . . . . . . . . . . . . . . . . . . . . . . . . Rewire 168 | . . . . . . . 6 . . . . . . . . . . . 65 19 . 78 . . . . Trap . | . . . . . . . . . . . . . . . . . . . . . . . . . . . Miscellaneous . | . . . . . . . . . . . . . . . . . . . . . . . . . . . Route ------- -11/Scrapyard -10/Materials -10/Mines (discovered 2 exits: *Mat x2) -9/Materials (discovered 4 exits: Mat x3 / *Min) -9/Mines -8/Materials -7/Factory (discovered 2 exits: *Low x2) -7/Lower Caves (discovered 2 exits: *Low / *Zio) -7/Lower Caves (discovered 2 exits: Fac / *Dat) -7/Data Miner -6/Proximity Caves -6/Factory (discovered 3 exits: *Fac / *Low x2) -6/Lower Caves -6/Lower Caves -6/Zion -5/Proximity Caves -5/Factory -5/Upper Caves -5/Upper Caves -5/Warlord -4/Proximity Caves -4/Factory (discovered 5 exits: *Res / Upp x2 / *Ext x2) -4/Extension (discovered 2 exits: *Res / *Cet) -4/Cetus -4/Archives (discovered 3 exits: *Res / *Hub x2) -4/Hub_04(d) (discovered 3 exits: *Res x3) -3/Research (discovered 1 exit: [*Qua]) History --------- Turn | Location | Event 2 | -11/Scrapyard | Met Revision 17 31 | -11/Scrapyard | Discovered new exit (range 15) 67 | -11/Scrapyard | Entered Materials 318 | -10/Materials | Build established: Mutant 471 | -10/Materials | Repaired Lgt. Treads 586 | -10/Materials | Discovered new exit (range 8) 600 | -10/Materials | Entered Mines 730 | -10/Mines | Discovered new exit (range 11) 765 | -10/Mines | Discovered new exit (range 8) 868 | -10/Mines | Entered Materials 868 | -9/Materials | Evolved 2 slots: Propulsion x1, Utility x1 891 | -9/Materials | Identified exit to Materials 1192 | -9/Materials | Discovered new exit (range 16) 1298 | -9/Materials | Entered Mines 1299 | -9/Mines | Assembled infested the area 1411 | -9/Mines | Assisted by bots powering up and referring to "LRC-V3" 1619 | -9/Mines | Learned location of 1 exit from Proximity Caves 1678 | -9/Mines | Found a damaged Exp. Sensor Array with a note attached 1682 | -9/Mines | Found Prototype Device 1743 | -9/Mines | Discovered exit to Materials (range 8) 1754 | -9/Mines | Entered Materials 1754 | -8/Materials | Evolved 2 slots: Propulsion x1, Utility x1 1861 | -8/Materials | Build established: Scavenger-Mutant 2154 | -8/Materials | Garrison activated, responded to threat 2170 | -8/Materials | Identified Exp. Sensor Array 2587 | -8/Materials | Garrison activated, responded to threat 2680 | -8/Materials | Discovered new exit (range 19) 2857 | -8/Materials | Repaired Exp. Sensor Array 2867 | -8/Materials | Entered Factory 2867 | -7/Factory | Evolved 2 slots: Utility x2 3278 | -7/Factory | Build established: Mutant 3567 | -7/Factory | Fabricated G-47 Trooper (x3) 3614 | -7/Factory | Identified exit to Lower Caves 3857 | -7/Factory | Entered Lower Caves 3857 | -7/Lower Caves | Accompanied by 1 ally 3943 | -7/Lower Caves | Learned Factory terminal intel 4105 | -7/Lower Caves | A Derelict revealed a hidden shortcut to a safe place 4146 | -7/Lower Caves | Identified exit to Zion 4806 | -7/Lower Caves | Attacked by a faux Warlord 4838 | -7/Lower Caves | Discovered new exit (range 15) 4890 | -7/Lower Caves | Identified exit to Lower Caves 4891 | -7/Lower Caves | Entered another Lower Caves area 4891 | -7/Lower Caves | Accompanied by 2 allies 5143 | -7/Lower Caves | Discovered new exit (range 5) 5152 | -7/Lower Caves | Identified exit to Data Miner 5158 | -7/Lower Caves | Identified exit to Factory 5469 | -7/Lower Caves | Entered Data Miner 5469 | -7/Data Miner | Accompanied by 2 allies 5469 | -7/Data Miner | Discovered new exit (range 6) 5494 | -7/Data Miner | Met Data Miner 5518 | -7/Data Miner | Learned location of Section 7 (-3) 5518 | -7/Data Miner | Acquired the access code to Warlord's prototype stash 5541 | -7/Data Miner | Received God Mode back door access code from Data Miner 5569 | -7/Data Miner | Identified exit to Proximity Caves 5576 | -7/Data Miner | Entered Proximity Caves 5576 | -6/Proximity Caves | Accompanied by 2 allies 5747 | -6/Proximity Caves | Spotted B-75 Beast 5749 | -6/Proximity Caves | Escorted by Enhanced Grunt 5774 | -6/Proximity Caves | Destroyed B-75 Beast 6204 | -6/Proximity Caves | Entered Factory 6204 | -6/Factory | Accompanied by 2 allies 6204 | -6/Factory | Evolved 2 slots: Power x1, Propulsion x1 6205 | -6/Factory | Loaded intel: 26 terminal locations 6664 | -6/Factory | Incoming investigation squad redirected 6817 | -6/Factory | Discovered new exit (range 16) 6896 | -6/Factory | Identified exit to Lower Caves 7302 | -6/Factory | Build established: Scavenger-Mutant 7355 | -6/Factory | Garrison activated, responded to threat 7404 | -6/Factory | Incoming investigation squad redirected 7525 | -6/Factory | Entered Lower Caves 7609 | -6/Lower Caves | Learned location of 1 exit from Proximity Caves 7641 | -6/Lower Caves | Learned Factory interactive machine intel 8012 | -6/Lower Caves | Discovered new exit (range 13) 8039 | -6/Lower Caves | Identified exit to Lower Caves 8040 | -6/Lower Caves | Entered another Lower Caves area 8117 | -6/Lower Caves | Learned Factory emergency access door positions 8480 | -6/Lower Caves | Spotted B-75 Beast 8504 | -6/Lower Caves | Attracted the attention of an 0b10 checkpoint 8813 | -6/Lower Caves | Learned Factory stockpile data 8826 | -6/Lower Caves | Discovered exit to Zion (range 5) 9028 | -6/Lower Caves | Entered Zion 9067 | -6/Zion | Given the Hacking Drone Bay 9118 | -6/Zion | Discovered new exit (range 15) 9157 | -6/Zion | Given A8's code to call for help 9190 | -6/Zion | System corruption cleaned by Quarantine Array 9201 | -6/Zion | System corruption reached 10% 9239 | -6/Zion | System corruption cleaned by Quarantine Array 9368 | -6/Zion | Learned Factory emergency access door positions 9605 | -6/Zion | Learned location of Armory (-3) 9633 | -6/Zion | Received a visual enhancement algorithm 9926 | -6/Zion | Learned location of Quarantine (-3) 10020 | -6/Zion | Found Prototype Launcher 10041 | -6/Zion | Identified Rocket Array 10201 | -6/Zion | Imprinted 10203 | -6/Zion | Declared Zion's savior 10449 | -6/Zion | Found Prototype Device 10452 | -6/Zion | Identified Hacking Drone Bay 10513 | -6/Zion | Identified exit to Proximity Caves 10684 | -6/Zion | Entered Proximity Caves 10684 | -5/Proximity Caves | Accompanied by 3 allies 10685 | -5/Proximity Caves | Identified exit to Factory 10778 | -5/Proximity Caves | Learned Factory terminal intel 11018 | -5/Proximity Caves | Attracted the attention of an 0b10 checkpoint 11206 | -5/Proximity Caves | Entered Factory 11206 | -5/Factory | Accompanied by 3 allies 11206 | -5/Factory | Evolved 2 slots: Utility x2 11209 | -5/Factory | Loaded intel: 52 interactive machine locations 11210 | -5/Factory | Loaded intel: 26 terminal locations 11244 | -5/Factory | Zion hero teleported in (NK-0LA) 11506 | -5/Factory | First assault squad dispatched 11565 | -5/Factory | Zion Offense Resupply teleported in 11748 | -5/Factory | Spotted B-75 Beast 11829 | -5/Factory | Incoming assault squad redirected 11936 | -5/Factory | System corruption reached 10% 11969 | -5/Factory | Discovered new exit (range 12) 12152 | -5/Factory | Incoming investigation squad redirected 12332 | -5/Factory | Identified exit to Upper Caves 12347 | -5/Factory | System corruption reached 30% 12371 | -5/Factory | Entered Upper Caves 12515 | -5/Upper Caves | Attracted the attention of an 0b10 checkpoint 12540 | -5/Upper Caves | Attracted the attention of an 0b10 base 12597 | -5/Upper Caves | Lost 4 parts (1n1u2w) 12600 | -5/Upper Caves | Destroyed 7 combat bots 12779 | -5/Upper Caves | Learned Factory emergency access door positions 13908 | -5/Upper Caves | Discovered new exit (range 7) 13916 | -5/Upper Caves | Identified exit to Upper Caves 13918 | -5/Upper Caves | Entered another Upper Caves area 14058 | -5/Upper Caves | Destroyed 9 combat bots 14066 | -5/Upper Caves | Lost 3 parts (3n) 14160 | -5/Upper Caves | Attracted the attention of an 0b10 checkpoint 14759 | -5/Upper Caves | Discovered new exit (range 9) 14779 | -5/Upper Caves | Identified exit to Warlord 14823 | -5/Upper Caves | Entered Warlord 14824 | -5/Warlord | Identified exit to Proximity Caves 14887 | -5/Warlord | System corruption cleaned by Quarantine Array 15736 | -5/Warlord | Rebuked by Warlord 15759 | -5/Warlord | Opened Warlord's prototype stash 15761 | -5/Warlord | Warlord's base attacked by MAIN.C 15766 | -5/Warlord | Found Prototype Reactor 15766 | -5/Warlord | Identified Vortex Chain Reactor 15790 | -5/Warlord | Found Prototype Processor 15790 | -5/Warlord | Identified Spectral Analyzer 16018 | -5/Warlord | Found Prototype Energy Cannon 16018 | -5/Warlord | Identified Vortex Driver 16021 | -5/Warlord | Found Vortex Driver 16061 | -5/Warlord | Build established: Commander-Mutant 16098 | -5/Warlord | Spotted Striker 16104 | -5/Warlord | Spotted Executioner 16111 | -5/Warlord | Warlord forces counterattacked 16119 | -5/Warlord | Spotted Executioner 16120 | -5/Warlord | Spotted Striker 16131 | -5/Warlord | Allies destroyed Striker 16151 | -5/Warlord | Destroyed 7 combat bots 16163 | -5/Warlord | Spotted Striker 16178 | -5/Warlord | Spotted Executioner 16180 | -5/Warlord | Destroyed Striker 16186 | -5/Warlord | Spotted Executioner 16263 | -5/Warlord | Spotted Executioner 16268 | -5/Warlord | Spotted Striker 16303 | -5/Warlord | Core integrity fell below 50% 16311 | -5/Warlord | Destroyed Executioner 16361 | -5/Warlord | Entered Proximity Caves 16361 | -4/Proximity Caves | Accompanied by 1 ally 16403 | -4/Proximity Caves | Identified exit to Factory 16432 | -4/Proximity Caves | Build established: Scavenger-Mutant 16540 | -4/Proximity Caves | Destroyed 8 combat bots 16947 | -4/Proximity Caves | Found Prototype Launcher 16947 | -4/Proximity Caves | Identified Tesla Bomb Launcher 17162 | -4/Proximity Caves | Entered Factory 17162 | -4/Factory | Accompanied by 2 allies 17162 | -4/Factory | Evolved 2 slots: Utility x1, Weapon x1 17233 | -4/Factory | Discovered new exit (range 11) 17287 | -4/Factory | Garrison activated, responded to threat 17398 | -4/Factory | Repaired Corrupted Helical Railgun 17507 | -4/Factory | Repaired Helical Railgun 17622 | -4/Factory | Identified exit to Research 17806 | -4/Factory | Build established: Scavenger-Gunner 17808 | -4/Factory | Retrieved Zion intel report: Branch Access 17808 | -4/Factory | Identified exit to Upper Caves 17808 | -4/Factory | Identified exit to Extension 17809 | -4/Factory | Zion Light squad teleported in 17937 | -4/Factory | Entered Extension 17937 | -4/Extension | Accompanied by 2 allies 17995 | -4/Extension | Incoming investigation squad redirected 18054 | -4/Extension | Rescued a captive Derelict 18199 | -4/Extension | Rescued A7 18379 | -4/Extension | Spotted B-86 Titan 18402 | -4/Extension | Destroyed B-86 Titan 18406 | -4/Extension | Spotted B-86 Titan 18428 | -4/Extension | Allies destroyed B-86 Titan 18573 | -4/Extension | Discovered new exit (range 23) 18574 | -4/Extension | Discovered exit to Research (range 23) 18648 | -4/Extension | Entered Cetus 18648 | -4/Cetus | Accompanied by 4 allies (A7) 18653 | -4/Cetus | Acquired a Cetus Manufacturing Module code from A7 18664 | -4/Cetus | Spotted Cetus Guard 18664 | -4/Cetus | Spotted Cetus Guard 18669 | -4/Cetus | Spotted Cetus Guard 18672 | -4/Cetus | Destroyed Cetus Guard 18673 | -4/Cetus | Spotted Cetus Guard 18679 | -4/Cetus | Allies destroyed Cetus Guard 18681 | -4/Cetus | Allies destroyed Cetus Guard 18690 | -4/Cetus | Allies destroyed Cetus Guard 18750 | -4/Cetus | Started Cetus Manufacturing Module 18766 | -4/Cetus | Escorted A7 to Cetus Mainframe 18775 | -4/Cetus | Manufactured an Enhanced Grunt 18800 | -4/Cetus | Manufactured an Enhanced Grunt 18801 | -4/Cetus | Cetus Manufacturing Module disabled 18846 | -4/Cetus | Extracted ID and sensor layout for unrecognized location from A7's data core 18869 | -4/Cetus | Discovered new exit (range 24) 18905 | -4/Cetus | Entered Archives 18905 | -4/Archives | Accompanied by 4 allies 18950 | -4/Archives | Discovered new exit (range 17) 18953 | -4/Archives | Discovered new exit (range 23) 18973 | -4/Archives | Discovered exit to Research (range 21) 19145 | -4/Archives | Entered Hub_04(d) 19145 | -4/Hub_04(d) | Accompanied by 4 allies 19163 | -4/Hub_04(d) | Discovered exit to Research (range 15) 19173 | -4/Hub_04(d) | Discovered exit to Research (range 18) 19173 | -4/Hub_04(d) | Spotted B-86 Titan 19177 | -4/Hub_04(d) | Retrieved Zion intel report: Active Terminals 19178 | -4/Hub_04(d) | Zion Heavy squad teleported in 19186 | -4/Hub_04(d) | Destroyed B-86 Titan 19233 | -4/Hub_04(d) | Discovered exit to Research (range 15) 19400 | -4/Hub_04(d) | Network Hub disabled 19407 | -4/Hub_04(d) | Spotted Lightning 19409 | -4/Hub_04(d) | Spotted Lightning 19409 | -4/Hub_04(d) | Spotted Lightning 19419 | -4/Hub_04(d) | Entered Research 19419 | -3/Research | Evolved 2 slots: Utility x2 19430 | -3/Research | Zion Hacking Resupply teleported in 19437 | -3/Research | Found Prototype Hackware 19623 | -3/Research | Incoming investigation squad redirected 19624 | -3/Research | Zion Light squad teleported in 19669 | -3/Research | First assault squad dispatched 19696 | -3/Research | Incoming assault squad redirected 19731 | -3/Research | Identified Exp. System Shield 19780 | -3/Research | Found Prototype Protection 20145 | -3/Research | Fabricated H-66 Slayer (x2) 20145 | -3/Research | System corruption reached 10% 20185 | -3/Research | Lost 4 parts (3n1w) 20275 | -3/Research | Incoming assault squad redirected 20325 | -3/Research | Released all parts (11) 20337 | -3/Research | Destroyed 13 combat bots 20351 | -3/Research | Enhanced Grunt warped into view, answering call for help 20353 | -3/Research | Enhanced Grunt warped into view, answering call for help 20357 | -3/Research | Lost 14 parts (2p4n4u4w) 20380 | -3/Research | Zion Light squad teleported in 20386 | -3/Research | Zion Heavy squad teleported in 20394 | -3/Research | High security lockdown imminent 20450 | -3/Research | Core integrity fell below 50% 20474 | -3/Research | High security lockdown engaged 20477 | -3/Research | Core integrity fell below 20% 20481 | -3/Research | Spotted B-90 Cyclops 20483 | -3/Research | Discovered new exit (range 15) 20487 | -3/Research | Destroyed by S-43 Plague with Heavy Machine Gun Last Messages --------------- 20448_ Destabilizing: System corrupted (+1). 20449_ System corrupted: Matter fused (-7). 20449_ Penetrated by Slug. 20449_ Slammed into P-80 Master. 20451_ Acquired 1 matter. 20451_ P-80 Master resets P-80 Master, system corruption cleaned. 20453_ Slug penetrates Wall. 20453_ Recycling Unit disabled. 20454_ Slug penetrates Recycling Unit. 20454_ Unknown Special Weapon tumbles out of recycling unit. 20459_ ALERT: Performing unscheduled system reset. 20460_ U-05 Engineer destroyed. 20461_ Slug penetrates Wall. 20461_ Slug penetrates R-10 Processor. 20461_ Slug penetrates Wall. 20465_ System corrupted: Matter fused (-10). 20474_ ALERT: Lockdown in effect, collecting threat data. 20482_ System corrupted: Matter fused (-7). 20483_ EXIT=FOUND 20487_ Door Terminal disabled. Map ----- +----------------------------------------------------+ | ?????????????????????????????????????????????????? | | ?????????????????????????????????????????????????? | | ?????????????????????????????????????????????????? | | ?????????????????????????????????????????????????? | | ?????????????????????????????????????????????????? | | ?????????????????????????????????????????????????? | | ?????????????????????????????????????????????????? | | ?????????????????????????????????????????????????? | | ?????????????????????????????????????????????????? | | ?????????????????????????????????????????????????? | | ?????????????????????????????????????????????????? | | ?????????????????????????????????????????????????? | | ?????????????????????????????????????????????????? | | ?????????????????????????????????????????????????? | | ????????????????????????#####????????????????????? | | ????????????????????????""""""???????????????????? | | ??????????????????????#"" """"???????????????????? | | ??????????????????????#" "#??????????????????? | | ??????????????????????#"" < ""#??????????????????? | | ??????????????????????#"" ""#??????????????????? | | ?????????????????????## ###????????????????? | | ??????????????????????"" """?????????????????? | | ????????????????????### BB ###????????????????? | | ?????????????????????""" BB """#????????????????? | | ????????????????????### ###????????????????? | | ????????????????????#""" @ """#????????????????? | | ????????????????????### ###????????????????? | | ??????????????????????### ###???#######????????? | | ????????????????????????# #????? ????????? | | ????????????????????????# #????# !????????? | | ?????????????????? ?##??# #????# ????????? | | ???????????????? ?? #???# #????# #??????? | | ?????????????## ? ??### ##???# """ #??????? | | ???????????###? ? ? ##### ####?# """ #??????? | | ????????? ##?#?? ? ?#?## ####?# """ ????????? | | ???????? ######??####### s#????# ??????????? | | ??????? ###??### ???? # s##???# ????????????? | | ??????? ?#???###? ? + s######+###+########### | | ?????? #?###### # # | | ?????####?###?#### # # | | ????####?#?#####?# # # | | ?????##?#####?#### ? #######+############## # | | ????######################## ? ####?#???# # | | ???##??##?##?### # ??###?#????# # | | ?#?##?########## #""? ?###?????# + | | ########?####### """ #""" #####????# # | | ???############# """ #""" ######???# # | | ?############### """ # ##?##???## # | | ################ ! # ?########## # | | ################ !! # ### # # | +----------------------------------------------------+ Best States ------------- Heat Dissipation 83 Coolant Potential 80 Energy Generation 55 Energy Capacity 865 Matter Stores 300 Matter Capacity 300 Sight Range 24 Robot Scan Range 20 Terrain Scan Range 20 Terrain Scan Density 210 Jamming Range 14 Armor Coverage 600 Resistance: TH 10 Utility Shielding 90 Evasion (%) 55 Targeting Accuracy 16 Target Analysis 6 Recoil Reduction 3 Energy Filtering 30 Kinecelleration 40 Offensive Hacking 10 Defensive Hacking 16 Authchip Count 1 Item Schematics ----------------- Exp. Sensor Array | -8/Materials | Scanalyzed Combat Drone Bay | -7/Data Miner | Free Lgt. Regenerative Plating | -7/Data Miner | Free Cld. Aerolev Unit | -7/Data Miner | Free Exp. Targeting Computer | -7/Data Miner | Free Imp. Lightning Gun | -7/Data Miner | Free Gyrokinetic Inverter | -7/Data Miner | Free Imp. Recalibrator | -7/Data Miner | Free Adv. Plasma Cannon | -7/Data Miner | Free Imp. Shock Absorption System | -7/Data Miner | Free Imp. Force Field | -7/Data Miner | Free Robot Schematics ------------------ H-66 Slayer | -7/Data Miner | Free A-15 Conveyor | -7/Data Miner | Free E-15 Imp | -7/Data Miner | Free M-14 Sweeper | -7/Data Miner | Free Fabricated ------------ G-47 Trooper | x3 | -7/Factory | Preloaded H-66 Slayer | x2 | -3/Research | Authchip Alien Tech Used ----------------- None Achievements -------------- None Challenges ------------ None Game ------ Seed GyrokineticHybridPurifier Manual? 0 Play Time 02:28:51 Cumulative 609.1 hours Start 2022.10.12 @ 16:47:28 End 2022.10.17 @ 18:54:15 Sessions 5 Manual Loads 0 Difficulty Rogue Special Mode None Game No. 381 Rogue 381 Adventurer 0 Explorer 0 Win Type - Total 8 Types 5/0/1/1/1/0/0/0/0 Lore% 87 Gallery% 88 Achievement% 74 Wizard Run 0 Options --------- ASCII 0 Keyboard 0 Movement Mouse Keybinds 1 Fullscreen 2 Font 24/Smallcaps Map View 68x50 Tactical HUD 1 Map Filters NONE Filters NONE Steam 1 RUN: be98e40e-9c18-41cc-812e-bcb3d2182408